bitfinex/quotes_BTCUSD_20250714
["timestamp","ask_amount","ask_price","bid_price","bid_amount"]
[1752484721317,0.52858865,122080.0,122070.0,0.12616]
[1752484721746,0.21181827,122080.0,122070.0,0.0012]
[1752484721966,0.59766634,122080.0,122070.0,0.12716]
[1752484722188,0.59766634,122080.0,122070.0,0.0012]
[1752484722400,0.59766634,122080.0,122070.0,0.12716]
[1752484722586,0.59966634,122080.0,122070.0,0.0012]
[1752484722811,0.59966634,122080.0,122070.0,0.12716]
[1752484723020,0.59966634,122080.0,122070.0,0.0012]
[1752484723452,0.59966634,122080.0,122070.0,0.12716]
[1752484724411,0.04378182,122080.0,122070.0,0.26473122]
[1752484724625,0.20779103,122080.0,122070.0,0.38249947]
[1752484724837,0.19960055,122080.0,122070.0,0.08450711]
[1752484725019,0.20760954,122080.0,122070.0,0.20850711]
[1752484725258,0.20760954,122080.0,122070.0,0.12716]
[1752484725259,0.54457992,122080.0,122070.0,0.12716]
[1752484725862,0.22380954,122080.0,122070.0,0.12716]
[1752484726105,0.54457992,122080.0,122070.0,0.0012]
[1752484726291,0.54457992,122080.0,122070.0,0.12716]
[1752484727122,0.54457992,122080.0,122070.0,0.0012]
[1752484727332,0.54457992,122080.0,122070.0,0.12716]
[1752484729338,0.54457992,122080.0,122070.0,0.0012]
[1752484729554,0.54457992,122080.0,122070.0,0.12716]
[1752484729757,0.19573874,122060.0,122050.0,0.01819336]
[1752484729959,0.19573874,122060.0,122050.0,0.21730711]
[1752484729960,0.19784874,122060.0,122050.0,0.21730711]
[1752484730166,0.19261639,122060.0,122050.0,0.09134711]
[1752484730298,0.51338677,122060.0,122050.0,0.01]
[1752484730531,0.59426446,122060.0,122050.0,0.01]
[1752484730883,0.59426446,122060.0,122050.0,0.13596]
[1752484731087,0.59441762,122060.0,122050.0,0.13596]
[1752484731290,0.59441762,122060.0,122050.0,0.01]
[1752484731420,0.59441762,122060.0,122050.0,0.00181454]
[1752484731818,0.17206048,122050.0,122040.0,0.12596]
[1752484732048,0.19606848,122040.0,122030.0,0.21274927]
[1752484732272,0.20013848,122040.0,122030.0,0.27770711]
[1752484732489,0.20013848,122040.0,122030.0,0.42005631]
[1752484732688,0.20013848,122040.0,122030.0,0.41186181]
[1752484732937,0.19913848,122040.0,122030.0,0.40366711]
[1752484733112,0.19913848,122040.0,122030.0,0.20730711]
[1752484733314,0.53620886,122040.0,122030.0,0.20730711]
[1752484733602,0.20113848,122040.0,122030.0,0.09054181]
[1752484733797,0.18226815,122040.0,122030.0,0.41414513]
[1752484734095,0.19553218,122040.0,122030.0,0.22566711]
[1752484734306,0.18733855,122040.0,122030.0,0.21650181]
[1752484734513,0.21555015,122040.0,122030.0,0.08234711]
[1752484734736,0.23135015,122040.0,122030.0,0.20830711]
[1752484735129,0.22315632,122040.0,122030.0,0.20830711]
[1752484735592,0.22315632,122040.0,122030.0,0.22469638]
[1752484735720,0.24789687,122040.0,122030.0,0.21650181]
[1752484735926,0.24789687,122040.0,122030.0,0.09054181]
[1752484736268,0.24789687,122040.0,122030.0,0.21650181]
[1752484736478,0.24789687,122040.0,122030.0,0.20830711]
[1752484736933,0.24789687,122040.0,122030.0,0.08234711]
[1752484737142,0.32837456,122040.0,122030.0,0.08234711]
[1752484737351,0.64914494,122040.0,122030.0,0.001]
[1752484737551,0.64914494,122040.0,122030.0,0.12696]
[1752484738400,0.64914494,122040.0,122030.0,0.001]
[1752484738600,0.65014494,122040.0,122030.0,0.001]
[1752484738807,0.22037768,122030.0,122020.0,0.18049816]
[1752484739016,0.20658775,122030.0,122020.0,0.3146532]
[1752484739260,0.04465356,122030.0,122020.0,0.3146532]
[1752484739464,0.21674238,122030.0,122020.0,0.3146532]
[1752484739682,0.21674238,122030.0,122020.0,0.31465326]
[1752484740089,0.04465356,122030.0,122020.0,0.3228483]
[1752484740295,0.02965356,122030.0,122020.0,0.18249816]
[1752484740505,0.20984768,122030.0,122020.0,0.17430292]
[1752484740711,0.20165325,122030.0,122020.0,0.30845816]
[1752484741136,0.19445875,122030.0,122020.0,0.17430292]
[1752484741342,0.19445875,122030.0,122020.0,0.30845823]
[1752484741778,0.19445875,122030.0,122020.0,0.31665347]
[1752484742406,0.19445875,122030.0,122020.0,0.30845823]
[1752484742623,0.20236412,122030.0,122020.0,0.14455068]
[1752484742836,0.20236412,122030.0,122020.0,0.15274592]
[1752484743102,0.20236412,122030.0,122020.0,0.32484864]
[1752484743326,0.19445875,122030.0,122020.0,0.32484864]
[1752484743532,0.19445875,122030.0,122020.0,0.33304374]
[1752484743747,0.21084788,122030.0,122020.0,0.33304341]
[1752484743956,0.05514786,122030.0,122020.0,0.333043]
[1752484744377,0.03065316,122030.0,122020.0,0.333043]
[1752484744691,0.05504779,122030.0,122020.0,0.1988881]
[1752484744900,0.001,122030.0,122020.0,0.64456049]
[1752484745100,0.001,122030.0,122020.0,0.77052049]
[1752484745294,0.0091941,122030.0,122020.0,0.32379011]
[1752484745486,0.001,122030.0,122020.0,0.77052049]
[1752484745623,0.001,122030.0,122020.0,0.65910134]
[1752484745855,0.001,122030.0,122020.0,0.99910134]
[1752484746041,0.001,122030.0,122020.0,1.12506134]
[1752484746237,0.001,122030.0,122020.0,1.34064931]
[1752484746711,0.001,122030.0,122020.0,1.21468931]
[1752484746910,0.001,122030.0,122020.0,1.34064931]
[1752484747123,0.001,122030.0,122020.0,1.21468931]
[1752484747334,1e-08,122030.0,122020.0,1.76052969]
[1752484747760,1e-08,122030.0,122020.0,1.63456969]
[1752484748386,1e-08,122030.0,122020.0,1.76252969]
[1752484748597,0.06523085,122060.0,122050.0,0.23468738]
[1752484748802,0.06523085,122060.0,122050.0,0.63876487]
[1752484749001,0.06523085,122060.0,122050.0,0.76692487]
[1752484749239,0.06523085,122060.0,122050.0,0.79148187]
[1752484749496,0.06523085,122060.0,122050.0,0.66552187]
[1752484749710,0.06523085,122060.0,122050.0,0.79148187]
[1752484749930,0.06523085,122060.0,122050.0,0.66552187]
[1752484750143,0.06523085,122060.0,122050.0,0.79148187]
[1752484750763,0.06523085,122060.0,122050.0,0.66552187]
[1752484751033,0.06523085,122060.0,122050.0,0.79144187]
[1752484751658,0.06523085,122060.0,122050.0,0.66552187]
[1752484751866,0.06523085,122060.0,122050.0,0.79144187]
[1752484752705,0.06823085,122060.0,122050.0,0.79244187]
[1752484753019,0.06823085,122060.0,122050.0,0.47167149]
[1752484753204,0.06823085,122060.0,122050.0,0.79244187]
[1752484753441,0.06823085,122060.0,122050.0,0.47167149]
[1752484753620,0.06823085,122060.0,122050.0,0.79244187]
[1752484755077,0.06823085,122060.0,122050.0,0.66652187]
[1752484755346,0.00819215,122060.0,122050.0,0.32081775]
[1752484755560,0.26281624,122060.0,122050.0,0.28715795]
[1752484755773,0.27100913,122060.0,122050.0,0.151477]
[1752484755954,0.27100913,122060.0,122050.0,0.12692]
[1752484756412,0.27100913,122060.0,122050.0,0.13511336]
[1752484756624,0.27100913,122060.0,122050.0,0.14330658]
[1752484756841,0.27100913,122060.0,122050.0,0.13511336]
[1752484757313,0.27100913,122060.0,122050.0,0.12696]
[1752484757515,0.27100913,122060.0,122050.0,0.001]
[1752484757516,0.60184709,122060.0,122050.0,0.001]
[1752484757718,0.60184709,122060.0,122050.0,0.12696]
[1752484758934,0.01638585,122050.0,122040.0,0.40124754]
[1752484759135,0.18135311,122050.0,122040.0,0.44982034]
[1752484759341,0.20750627,122050.0,122040.0,0.57574034]
[1752484759549,0.21569956,122050.0,122040.0,0.58393417]
[1752484759762,0.21569956,122050.0,122040.0,0.4416278]
[1752484759970,0.21569956,122050.0,122040.0,0.58393559]
[1752484760177,0.21569956,122050.0,122040.0,0.59212935]
[1752484760607,0.20750627,122050.0,122040.0,0.60032298]
[1752484760820,0.21569963,122050.0,122040.0,0.58393559]
[1752484761031,0.20750627,122050.0,122040.0,0.59413928]
[1752484761246,0.21450627,122050.0,122040.0,0.59513928]
[1752484761464,0.22269956,122050.0,122040.0,0.59513935]
[1752484761674,0.21450627,122050.0,122040.0,0.40693304]
[1752484761846,0.21450627,122050.0,122040.0,0.41512667]
[1752484762074,0.1995062,122050.0,122040.0,0.41512627]
[1752484762283,0.1995062,122050.0,122040.0,0.40693271]
[1752484762481,0.03563894,122050.0,122040.0,0.40693264]
[1752484762708,0.03563894,122050.0,122040.0,0.40693271]
[1752484762978,0.03563894,122050.0,122040.0,0.41512627]
[1752484763340,0.01206,122050.0,122040.0,0.41548627]
[1752484763556,0.01729282,122050.0,122040.0,0.41548627]
[1752484763978,0.01729275,122050.0,122040.0,0.41548627]
[1752484764203,0.01729275,122050.0,122040.0,0.28920627]
[1752484764442,0.01729275,122050.0,122040.0,0.41548627]
[1752484764867,0.02548564,122050.0,122040.0,0.41548627]
[1752484765036,0.03367866,122050.0,122040.0,0.41548627]
[1752484765731,0.20573908,122050.0,122040.0,0.27281908]
[1752484766155,0.20573908,122050.0,122040.0,0.40725271]
[1752484766368,0.02548564,122050.0,122040.0,0.41544627]
[1752484766580,0.04187188,122050.0,122040.0,0.40725271]
[1752484766793,0.04187182,122050.0,122040.0,0.40725271]
[1752484767006,0.03367866,122050.0,122040.0,0.40725271]
[1752484767219,0.20573908,122050.0,122040.0,0.39905908]
[1752484767633,0.20573908,122050.0,122040.0,0.40725271]
[1752484767842,0.21354592,122050.0,122040.0,0.41544627]
[1752484768050,0.22173901,122050.0,122040.0,0.41540627]
[1752484768292,0.21354592,122050.0,122040.0,0.41540627]
[1752484768499,0.04967866,122050.0,122040.0,0.41540627]
[1752484768725,0.03329275,122050.0,122040.0,0.41540627]
[1752484768936,0.02548571,122050.0,122040.0,0.41540627]
[1752484769358,0.03367873,122050.0,122040.0,0.41540627]
[1752484769786,0.03367873,122050.0,122040.0,0.40721271]
[1752484770012,0.20573915,122050.0,122040.0,0.39893908]
[1752484770204,0.20573915,122050.0,122040.0,0.40713271]
[1752484770424,0.02548571,122050.0,122040.0,0.41532627]
[1752484770755,0.03545275,122050.0,122040.0,0.41532627]
[1752484770960,0.04364564,122050.0,122040.0,0.41532627]
[1752484771138,0.05183866,122050.0,122040.0,0.41532627]
[1752484771554,0.05183873,122050.0,122040.0,0.41532627]
[1752484772027,0.05183873,122050.0,122040.0,0.40713271]
[1752484772212,0.05183866,122050.0,122040.0,0.41532627]
[1752484772417,0.22389914,122050.0,122040.0,0.39893908]
[1752484772631,0.21570592,122050.0,122040.0,0.39893908]
[1752484772808,0.21570592,122050.0,122040.0,0.40713264]
[1752484773393,0.05183866,122050.0,122040.0,0.40713264]
[1752484773568,0.04364564,122050.0,122040.0,0.28101264]
[1752484773810,0.007,122050.0,122040.0,0.40709264]
[1752484773987,0.007,122050.0,122040.0,0.63519302]
[1752484775070,0.007,122050.0,122040.0,0.76119302]
[1752484775673,0.007,122050.0,122040.0,0.63519302]
[1752484775893,0.007,122050.0,122040.0,0.76119302]
[1752484776292,0.007,122050.0,122040.0,1.05689302]
[1752484776938,0.007,122050.0,122040.0,0.61012264]
[1752484777378,0.20861324,122050.0,122040.0,0.56851908]
[1752484777591,0.2168062,122050.0,122040.0,0.57470271]
[1752484777806,0.2168062,122050.0,122040.0,0.69246921]
[1752484778016,0.20861311,122050.0,122040.0,0.70066284]
[1752484778228,0.21680613,122050.0,122040.0,0.70066284]
[1752484778846,0.03655289,122050.0,122040.0,0.5828964]
[1752484779054,0.21680639,122050.0,122040.0,0.68431552]
[1752484779260,0.21680633,122050.0,122040.0,0.69250921]
[1752484779473,0.21680633,122050.0,122040.0,0.56650935]
[1752484779652,0.24059962,122050.0,122040.0,0.67608176]
[1752484779885,0.23240633,122050.0,122040.0,0.68427566]
[1752484780065,0.24059962,122050.0,122040.0,0.67608176]
[1752484780268,0.23240633,122050.0,122040.0,0.68427552]
[1752484780471,0.22421317,122050.0,122040.0,0.57470277]
[1752484780608,0.22421317,122050.0,122040.0,0.70066284]
[1752484781103,0.23240633,122050.0,122040.0,0.68427552]
[1752484782336,0.23240633,122050.0,122040.0,0.38857559]
[1752484782531,0.23240633,122050.0,122040.0,0.39676935]
[1752484782966,0.24059962,122050.0,122040.0,0.08234711]
[1752484783171,0.24059962,122050.0,122040.0,0.20830711]
[1752484783462,0.23240673,122050.0,122040.0,0.20830711]
[1752484783676,0.23240673,122050.0,122040.0,0.21650107]
[1752484783799,0.23240673,122050.0,122040.0,0.20830711]
[1752484784019,0.22421371,122050.0,122040.0,0.20830711]
[1752484784947,0.54498409,122050.0,122040.0,0.20830711]
[1752484785186,0.21602055,122050.0,122040.0,0.20830711]
[1752484785410,0.52859764,122050.0,122040.0,0.001]
[1752484785657,0.52859764,122050.0,122040.0,0.12696]
[1752484786361,0.20782726,122050.0,122040.0,0.12696]
[1752484786587,0.52859764,122050.0,122040.0,0.001]
[1752484786813,0.52859764,122050.0,122040.0,0.12696]
[1752484788701,0.52859764,122050.0,122040.0,0.001]
[1752484788928,0.20782726,122050.0,122040.0,0.001]
[1752484789135,0.20782726,122050.0,122040.0,0.12696]
[1752484789559,0.52859764,122050.0,122040.0,0.12696]
[1752484790623,0.041,122050.0,122040.0,0.18335855]
[1752484790845,0.007,122050.0,122040.0,0.74760336]
[1752484791065,0.007,122050.0,122040.0,0.76300336]
[1752484791278,0.007,122050.0,122040.0,0.76273446]
[1752484791705,0.007,122050.0,122040.0,0.63677446]
[1752484792121,0.007,122050.0,122040.0,0.76273446]
[1752484792351,0.007,122050.0,122040.0,0.63677446]
[1752484792973,0.007,122050.0,122040.0,0.76273446]
[1752484793384,0.007,122050.0,122040.0,0.63677446]
[1752484793612,0.007,122050.0,122040.0,0.76273446]
[1752484794207,0.007,122050.0,122040.0,1.05843446]
[1752484795258,0.007,122050.0,122040.0,0.93247446]
[1752484795489,0.007,122050.0,122040.0,1.05843446]
[1752484795913,0.007,122050.0,122040.0,0.76273446]
[1752484796645,0.007,122050.0,122040.0,0.63677446]
[1752484796849,0.007,122050.0,122040.0,0.76273446]
[1752484797056,0.007,122050.0,122040.0,0.63677446]
[1752484797289,0.007,122050.0,122040.0,0.76273446]
[1752484797484,0.00695592,122050.0,122040.0,0.76273446]
[1752484797689,0.00695592,122050.0,122040.0,0.63677446]
[1752484797898,0.00695592,122050.0,122040.0,0.76273446]
[1752484798100,0.00695592,122050.0,122040.0,0.63677446]
[1752484798308,0.00695592,122050.0,122040.0,0.76273446]
[1752484798519,0.00695592,122050.0,122040.0,0.62017446]
[1752484798791,0.00695592,122050.0,122040.0,0.74613446]
[1752484799200,0.00695592,122050.0,122040.0,0.62017446]
[1752484799407,0.01514867,122050.0,122040.0,0.74613446]
[1752484799820,0.00695592,122050.0,122040.0,0.74609446]
[1752484800197,0.01514874,122050.0,122040.0,0.62017446]
[1752484800431,0.00695592,122050.0,122040.0,0.74609446]
[1752484800846,0.00695592,122050.0,122040.0,0.73069446]
[1752484801263,0.00695592,122050.0,122040.0,0.40992408]
[1752484801469,0.00695592,122050.0,122040.0,0.73069446]
[1752484801651,0.00695592,122050.0,122040.0,0.60477446]
[1752484801858,0.00695592,122050.0,122040.0,0.73069446]
[1752484802378,0.00695592,122050.0,122040.0,0.40992408]
[1752484802573,0.00695592,122050.0,122040.0,0.73069446]
[1752484803280,0.00695592,122050.0,122040.0,0.42602408]
[1752484803491,0.00695592,122050.0,122040.0,0.74679446]
[1752484804150,0.00695592,122050.0,122040.0,0.62087446]
[1752484804575,0.00695592,122050.0,122040.0,0.74679446]
[1752484804784,0.00695592,122050.0,122040.0,0.76259446]
[1752484805962,0.00695592,122050.0,122040.0,1.05829446]
[1752484807889,0.00695592,122050.0,122040.0,1.04249446]
[1752484808516,0.00695592,122050.0,122040.0,0.93317446]
[1752484808728,0.00695592,122050.0,122040.0,1.05909446]
[1752484809810,0.00695592,122050.0,122040.0,0.93317446]
[1752484810173,0.00695592,122050.0,122040.0,0.91657446]
[1752484810380,0.00695592,122050.0,122040.0,1.04249446]
[1752484810611,0.00695592,122050.0,122040.0,0.91657446]
[1752484810800,0.00695592,122050.0,122040.0,1.04249446]
[1752484811524,0.01514867,122050.0,122040.0,0.91657446]
[1752484811723,0.01514867,122050.0,122040.0,0.70562408]
[1752484811959,0.00695592,122050.0,122040.0,1.02639446]
[1752484812401,0.00695592,122050.0,122040.0,0.73069446]
[1752484813630,0.00695592,122050.0,122040.0,0.28400408]
[1752484813833,0.00695592,122050.0,122040.0,0.74589446]
[1752484814355,0.00695592,122050.0,122040.0,0.61997446]
[1752484814586,0.00695592,122050.0,122040.0,0.74589446]
[1752484815088,0.00695592,122050.0,122040.0,0.61997446]
[1752484815437,0.00695592,122050.0,122040.0,0.74589446]
[1752484818274,0.00695592,122050.0,122040.0,0.61997446]
[1752484818480,0.00695592,122050.0,122040.0,0.74589446]
[1752484818683,0.00695592,122050.0,122040.0,0.61997446]
[1752484818942,0.00695592,122050.0,122040.0,0.42512408]
[1752484819146,0.00695592,122050.0,122040.0,0.61997446]
[1752484819564,0.00695592,122050.0,122040.0,0.74589446]
[1752484819766,0.00695592,122050.0,122040.0,0.61997446]
[1752484819976,0.00695592,122050.0,122040.0,0.74589446]
[1752484821510,0.00695592,122050.0,122040.0,0.61997446]
[1752484821762,0.00695592,122050.0,122040.0,0.74589446]
[1752484821996,0.00695592,122050.0,122040.0,0.61997446]
[1752484822251,0.00695592,122050.0,122040.0,0.74589446]
[1752484822467,0.00695592,122050.0,122040.0,0.61997446]
[1752484822690,0.00695592,122050.0,122040.0,0.74589446]
[1752484822915,0.00695592,122050.0,122040.0,0.61997446]
[1752484823143,0.00695592,122050.0,122040.0,0.74589446]
[1752484823366,0.00695592,122050.0,122040.0,1.60718569]
[1752484823591,0.00695592,122050.0,122040.0,0.96564493]
[1752484823799,0.00695592,122050.0,122040.0,1.09156493]
[1752484824007,0.00695592,122050.0,122040.0,1.41233531]
[1752484824224,0.02650598,122050.0,122040.0,0.57652421]
[1752484824434,0.04300591,122050.0,122040.0,0.57443421]
[1752484824651,0.03772,122050.0,122040.0,0.57370311]
[1752484824862,0.02772282,122050.0,122040.0,0.57570311]
[1752484825075,0.02153,122050.0,122040.0,0.70262311]
[1752484825937,0.02972275,122050.0,122040.0,0.70262311]
[1752484826439,0.02972275,122050.0,122040.0,0.40692311]
[1752484826652,0.02972275,122050.0,122040.0,0.28100311]
[1752484826858,0.02972275,122050.0,122040.0,0.40692311]
[1752484827624,0.02153,122050.0,122040.0,0.40692311]
[1752484829188,0.003,122050.0,122040.0,0.73077349]
[1752484829715,0.003,122050.0,122040.0,0.74667349]
[1752484831020,0.003,122050.0,122040.0,0.76207349]
[1752484831228,0.003,122050.0,122040.0,1.31146472]
[1752484831431,0.003,122050.0,122040.0,1.43738472]
[1752484834065,0.003,122050.0,122040.0,1.31146472]
[1752484834310,0.003,122050.0,122040.0,1.43738472]
[1752484834513,0.003,122050.0,122040.0,1.31146472]
[1752484834735,0.003,122050.0,122040.0,1.43734472]
[1752484835150,0.003,122050.0,122040.0,1.31146472]
[1752484835361,0.003,122050.0,122040.0,1.43734472]
[1752484836193,0.003,122050.0,122040.0,1.31146472]
[1752484836466,0.003,122050.0,122040.0,1.43734472]
[1752484836694,1e-08,122050.0,122040.0,1.48634472]
[1752484836934,1e-08,122050.0,122040.0,1.48734472]
[1752484837164,0.06507769,122060.0,122050.0,0.52844653]
[1752484837419,0.06507769,122060.0,122050.0,1.08964402]
[1752484837669,0.06507769,122060.0,122050.0,0.96684402]
[1752484837922,0.06507769,122060.0,122050.0,1.10726487]
[1752484838633,0.06507769,122080.0,122070.0,0.57415651]
[1752484838859,0.06507769,122080.0,122070.0,1.10466507]
[1752484839279,0.06507769,122080.0,122070.0,0.98186507]
[1752484839488,0.06507769,122080.0,122070.0,1.10774507]
[1752484840319,0.06907769,122080.0,122070.0,0.98286507]
[1752484840500,0.06507769,122080.0,122070.0,1.10774507]
[1752484841776,0.06507769,122080.0,122070.0,0.78697469]
[1752484842022,0.06507769,122080.0,122070.0,1.09174507]
[1752484842238,0.06507769,122080.0,122070.0,0.96586507]
[1752484842443,0.06507769,122080.0,122070.0,1.09174507]
[1752484843465,0.06507769,122080.0,122070.0,0.96586507]
[1752484843672,0.06507769,122080.0,122070.0,1.09174507]
[1752484844710,0.06507769,122080.0,122070.0,0.77097469]
[1752484844947,0.06507769,122080.0,122070.0,1.07654507]
[1752484845289,0.06507769,122080.0,122070.0,0.96646507]
[1752484845493,0.06507769,122080.0,122070.0,1.09234507]
[1752484849766,0.06507769,122080.0,122070.0,1.09230507]
[1752484849974,0.06507769,122080.0,122070.0,0.64569469]
[1752484850151,0.06507769,122080.0,122070.0,1.09230507]
[1752484851610,0.06507769,122080.0,122070.0,0.96646507]
[1752484851949,0.06507769,122080.0,122070.0,1.09230507]
[1752484852156,0.06507769,122080.0,122070.0,1.10900507]
[1752484854440,0.06507769,122080.0,122070.0,1.09230507]
[1752484856787,0.06507769,122080.0,122070.0,0.96646507]
[1752484856910,0.06507769,122080.0,122070.0,1.10880507]
[1752484857131,0.06507769,122080.0,122070.0,1.03207507]
[1752484857534,0.06507769,122080.0,122070.0,1.15791507]
[1752484858315,0.06507769,122080.0,122070.0,1.03307507]
[1752484858468,0.06507769,122100.0,122090.0,0.86369603]
[1752484858681,0.08117769,122100.0,122090.0,1.07290314]
[1752484859305,0.10304769,122100.0,122090.0,0.60973191]
[1752484859507,0.43200754,122100.0,122090.0,0.60154171]
[1752484859840,0.44838708,122100.0,122090.0,0.38738171]
[1752484860040,0.44319721,122100.0,122090.0,0.40476218]
[1752484860269,0.45138694,122100.0,122090.0,0.27892218]
[1752484860474,0.45138694,122100.0,122090.0,0.40476218]
[1752484860686,0.43500754,122100.0,122090.0,0.27892218]
[1752484860917,0.43500754,122100.0,122090.0,0.40476218]
[1752484861108,0.11423716,122100.0,122090.0,0.40476218]
[1752484861307,0.11423716,122100.0,122090.0,0.27892218]
[1752484861433,0.12242676,122100.0,122090.0,0.40476218]
[1752484861634,0.11423716,122100.0,122090.0,0.40476218]
[1752484862031,0.12242676,122100.0,122090.0,0.40476218]
[1752484862662,0.11423716,122100.0,122090.0,0.40476218]
[1752484862915,0.11423716,122100.0,122090.0,0.27892218]
[1752484863112,0.13161629,122100.0,122090.0,0.40476218]
[1752484863442,0.11423716,122100.0,122090.0,0.40476218]
[1752484863643,0.11942676,122100.0,122090.0,0.40376218]
[1752484863877,0.12642676,122100.0,122090.0,0.40476218]
[1752484864079,0.11823716,122100.0,122090.0,0.40476218]
[1752484864555,0.11004769,122100.0,122090.0,0.40476218]
[1752484865021,0.007,122100.0,122090.0,0.72751256]
[1752484865224,0.007,122100.0,122090.0,0.73054256]
[1752484865631,0.007,122100.0,122090.0,0.60474256]
[1752484865872,0.007,122100.0,122090.0,1.10128341]
[1752484867805,0.007,122100.0,122090.0,1.11748341]
[1752484868226,0.007,122100.0,122090.0,0.99168341]
[1752484868442,1e-08,122100.0,122090.0,1.09079341]
[1752484868840,0.43515,122130.0,122120.0,0.1883385]
[1752484869180,0.43717,122130.0,122120.0,0.39548561]
[1752484869588,0.50224769,122130.0,122120.0,0.39548561]
[1752484869812,0.53478275,122130.0,122120.0,0.39548561]
[1752484870016,0.53493633,122130.0,122120.0,0.39548561]
[1752484870339,0.53493633,122130.0,122120.0,0.26968561]
[1752484870721,0.53793633,122130.0,122120.0,0.39548561]
[1752484871750,0.53893633,122130.0,122120.0,0.39548561]
[1752484874123,0.53893633,122130.0,122120.0,0.26968561]
[1752484874354,0.53893633,122130.0,122120.0,0.39548561]
[1752484875017,0.53893633,122130.0,122120.0,0.26968561]
[1752484875237,0.53893633,122130.0,122120.0,0.39548561]
[1752484877348,0.52283633,122130.0,122120.0,0.39745561]
[1752484877876,0.53863633,122130.0,122120.0,0.39548561]
[1752484878796,0.53863633,122130.0,122120.0,0.26968561]
[1752484879011,0.53863633,122130.0,122120.0,0.39544561]
[1752484879416,0.52283633,122130.0,122120.0,0.39741561]
[1752484880264,0.52283633,122130.0,122120.0,0.39544561]
[1752484881101,0.52283633,122130.0,122120.0,0.44455561]
[1752484881323,0.52283633,122130.0,122120.0,0.39544561]
[1752484882108,0.45775864,122130.0,122120.0,0.26968561]
[1752484882335,0.45775864,122130.0,122120.0,0.39741561]
[1752484884273,0.40415358,122130.0,122120.0,0.39741561]
[1752484884841,0.40415358,122130.0,122120.0,0.41728561]
[1752484885468,0.40115358,122130.0,122120.0,0.41728561]
[1752484886410,0.40015358,122130.0,122120.0,0.61229599]
[1752484886639,0.40015358,122130.0,122120.0,0.73805599]
[1752484887477,0.40115358,122130.0,122120.0,0.73805599]
[1752484890082,0.40115358,122130.0,122120.0,0.75505599]
[1752484890514,0.40115358,122130.0,122120.0,0.62929599]
[1752484890659,0.40115358,122130.0,122120.0,0.75501599]
[1752484891660,0.40115358,122130.0,122120.0,1.09501599]
[1752484892061,0.40115358,122130.0,122120.0,1.07801599]
[1752484892885,0.40115358,122130.0,122120.0,0.95229599]
[1752484893088,0.40115358,122130.0,122120.0,1.07801599]
[1752484893314,0.39965358,122130.0,122120.0,1.06111599]
[1752484893870,0.39965358,122130.0,122120.0,1.07691599]
[1752484894682,0.39965358,122130.0,122120.0,0.98133684]
[1752484894898,0.39965358,122130.0,122120.0,0.78628646]
[1752484895110,0.39965358,122130.0,122120.0,0.77068646]
[1752484895321,0.39865358,122130.0,122120.0,0.77068646]
[1752484897532,0.39865358,122130.0,122120.0,1.09145684]
[1752484898790,0.39865358,122130.0,122120.0,0.77068646]
[1752484898937,0.39865358,122130.0,122120.0,1.09145684]
[1752484899141,0.39865358,122130.0,122120.0,0.77068646]
[1752484899936,0.39865358,122130.0,122120.0,1.09145684]
[1752484902391,0.39865358,122130.0,122120.0,0.77068646]
[1752484902636,0.39865358,122130.0,122120.0,1.09145684]
[1752484903493,0.39865358,122130.0,122120.0,0.78618646]
[1752484903696,0.39865358,122130.0,122120.0,1.10695684]
[1752484904316,0.39865358,122130.0,122120.0,0.78618646]
[1752484904497,0.39865358,122130.0,122120.0,1.10695684]
[1752484904734,0.39865358,122130.0,122120.0,1.09145684]
[1752484908327,0.39865358,122130.0,122120.0,0.77068646]
[1752484908522,0.39865358,122130.0,122120.0,1.09141684]
[1752484911082,0.39865358,122130.0,122120.0,1.011727]
[1752484912897,0.39865358,122130.0,122120.0,0.77064646]
[1752484913106,0.39865358,122130.0,122120.0,1.011727]
[1752484914934,0.39865358,122130.0,122120.0,1.12712754]
[1752484915139,0.39865358,122130.0,122120.0,1.45988479]
[1752484917626,0.39865358,122130.0,122120.0,1.38335479]
[1752484918056,1e-08,122130.0,122120.0,1.62443533]
[1752484918266,1e-08,122130.0,122120.0,1.77461333]
[1752484918688,1e-08,122130.0,122120.0,1.58329608]
[1752484918892,1e-08,122130.0,122120.0,1.45765608]
[1752484919094,1e-08,122130.0,122120.0,1.58329608]
[1752484919309,1e-08,122130.0,122120.0,1.58529608]
[1752484919776,1e-08,122130.0,122120.0,1.45965608]
[1752484919993,1e-08,122130.0,122120.0,1.58529608]
[1752484920443,1e-08,122130.0,122120.0,1.58629608]
[1752484920874,1e-08,122130.0,122120.0,1.46065608]
[1752484921081,1e-08,122130.0,122120.0,1.50564248]
[1752484921617,1e-08,122130.0,122120.0,1.43000248]
[1752484921822,1e-08,122130.0,122120.0,1.55564248]
[1752484923326,1e-08,122130.0,122120.0,1.43000248]
[1752484923549,0.25,122150.0,122140.0,0.88300168]
[1752484923767,0.25,122150.0,122140.0,0.96649879]
[1752484923975,0.25,122150.0,122140.0,1.09508879]
[1752484924366,0.25,122150.0,122140.0,0.96944879]
[1752484924579,1e-08,122150.0,122140.0,1.20869964]
[1752484924781,1e-08,122150.0,122140.0,1.23423464]
[1752484925367,0.06507769,122170.0,122140.0,1.20183464]
[1752484925543,0.06523119,122170.0,122160.0,0.59091796]
[1752484925748,0.06523119,122170.0,122160.0,1.07320881]
[1752484926268,0.06523119,122170.0,122160.0,1.07615881]
[1752484927047,0.0001535,122170.0,122160.0,0.98325881]
[1752484927269,0.0001535,122170.0,122160.0,1.62635282]
[1752484927668,0.0001535,122170.0,122160.0,1.17945881]
[1752484927840,0.0031535,122170.0,122160.0,1.62635282]
[1752484928039,0.0031535,122170.0,122160.0,1.30505881]
[1752484928245,0.0041535,122170.0,122160.0,1.30505881]
[1752484928465,0.0011535,122170.0,122160.0,0.8411648]
[1752484928669,0.0236735,122170.0,122160.0,0.9481148]
[1752484928875,0.0246735,122170.0,122160.0,0.8225148]
[1752484929090,0.0236735,122170.0,122160.0,0.6241648]
[1752484929290,0.36096751,122170.0,122160.0,0.7497648]
[1752484929494,0.0396735,122170.0,122160.0,0.7497648]
[1752484929739,0.0386735,122170.0,122160.0,0.7497648]
[1752484929948,0.0386735,122170.0,122160.0,0.6241648]
[1752484930122,0.0386735,122170.0,122160.0,0.7507648]
[1752484930521,0.0386735,122170.0,122160.0,0.7497648]
[1752484930757,0.10375119,122170.0,122160.0,0.7497648]
[1752484931528,0.10475119,122170.0,122160.0,0.7497648]
[1752484932139,0.08875119,122170.0,122160.0,1.07105881]
[1752484932395,0.08875119,122170.0,122160.0,1.07320881]
[1752484933367,0.08559119,122170.0,122160.0,1.07320881]
[1752484935086,0.08870119,122170.0,122160.0,1.07320881]
[1752484936074,0.08870119,122170.0,122160.0,0.7519148]
[1752484936273,0.12207094,122170.0,122160.0,0.26143832]
[1752484936475,0.59888655,122170.0,122160.0,0.08134711]
[1752484936694,0.59888655,122170.0,122140.0,0.1801193]